[Event "Blixt-SM 2021"]
[Site "Elite Hotel Marina Plaza, Kungstorget 6, Helsingborg, Sweden"]
[Date "2021.11.14"]
[Round "4.4"]
[White "Storme, Isak"]
[Black "Kucuksari, Kaan"]
[Result "1-0"]
[TimeControl "3 minutes + 2 seconds per move."]
[WhiteTitle "FM"]
[BlackTitle "FM"]
[WhiteFideId "1728113"]
[BlackFideId "6380166"]
[WhiteElo "2037"]
[BlackElo "2301"]

1. d4 {[%clk 00:03:02]} {[%emt 00:00:02]} Nf6 {[%clk 00:02:58]} {[%emt
00:00:07]} 2. Bf4 {[%clk 00:03:02]} {[%emt 00:00:02]} g6 {[%clk 00:02:58]}
{[%emt 00:00:02]} 3. Nc3 {[%clk 00:03:01]} {[%emt 00:00:02]} d5 {[%clk
00:02:58]} {[%emt 00:00:02]} 4. Nf3 {[%clk 00:02:56]} {[%emt 00:00:07]} Bg7
{[%clk 00:02:59]} {[%emt 00:00:02]} 5. Nb5 {[%clk 00:02:55]} {[%emt 00:00:03]}
Na6 {[%clk 00:02:58]} {[%emt 00:00:03]} 6. e3 {[%clk 00:02:53]} {[%emt
00:00:03]} O-O {[%clk 00:02:47]} {[%emt 00:00:14]} 7. Be2 {[%clk 00:02:51]}
{[%emt 00:00:03]} c6 {[%clk 00:02:38]} {[%emt 00:00:13]} 8. Nc3 {[%clk
00:02:51]} {[%emt 00:00:02]} Nc7 {[%clk 00:02:33]} {[%emt 00:00:06]} 9. O-O
{[%clk 00:02:49]} {[%emt 00:00:03]} Bf5 {[%clk 00:01:57]} {[%emt 00:00:39]} 10.
h3 {[%clk 00:02:38]} {[%emt 00:00:13]} Ne4 {[%clk 00:01:55]} {[%emt 00:00:04]}
11. Nxe4 {[%clk 00:02:30]} {[%emt 00:00:10]} Bxe4 {[%clk 00:01:55]} {[%emt
00:00:03]} 12. c4 {[%clk 00:02:22]} {[%emt 00:00:10]} Bxf3 {[%clk 00:01:54]}
{[%emt 00:00:02]} 13. Bxf3 {[%clk 00:02:04]} {[%emt 00:00:21]} dxc4 {[%clk
00:01:55]} {[%emt 00:00:01]} 14. Rc1 {[%clk 00:01:10]} {[%emt 00:00:55]} Nd5
{[%clk 00:01:55]} {[%emt 00:00:02]} 15. Bh2 {[%clk 00:01:08]} {[%emt 00:00:04]}
b5 {[%clk 00:01:49]} {[%emt 00:00:09]} 16. b3 {[%clk 00:01:08]} {[%emt
00:00:02]} c3 {[%clk 00:01:36]} {[%emt 00:00:15]} 17. Bxd5 {[%clk 00:01:03]}
{[%emt 00:00:07]} cxd5 {[%clk 00:01:37]} {[%emt 00:00:02]} 18. Rxc3 {[%clk
00:01:01]} {[%emt 00:00:03]} Qa5 {[%clk 00:01:37]} 19. Qc2 {[%clk 00:00:56]}
{[%emt 00:00:08]} Qb4 {[%clk 00:00:40]} {[%emt 00:01:00]} 20. Rc1 {[%clk
00:00:54]} {[%emt 00:00:03]} Rfd8 {[%clk 00:00:19]} {[%emt 00:00:22]} 21. Qb2
{[%clk 00:00:30]} {[%emt 00:00:28]} e6 {[%clk 00:00:20]} 22. Rc5 {[%clk
00:00:21]} {[%emt 00:00:11]} Bf8 {[%clk 00:00:20]} {[%emt 00:00:02]} 23. a3
{[%clk 00:00:06]} {[%emt 00:00:17]} Qa5 {[%clk 00:00:22]} 24. Bc7 {[%clk
00:00:07]} Qa6 {[%clk 00:00:23]} 25. Bxd8 {[%clk 00:00:06]} {[%emt 00:00:03]}
Bxc5 {[%clk 00:00:24]} 26. Rxc5 {[%clk 00:00:05]} {[%emt 00:00:05]} Rxd8 {[%clk
00:00:25]} 27. b4 {[%clk 00:00:05]} {[%emt 00:00:01]} Qa4 {[%clk 00:00:09]}
{[%emt 00:00:18]} 28. g3 {[%clk 00:00:05]} {[%emt 00:00:02]} Qd1+ {[%clk
00:00:10]} {[%emt 00:00:01]} 29. Kg2 {[%clk 00:00:06]} a6 {[%clk 00:00:11]}
{[%emt 00:00:01]} 30. Qc3 {[%clk 00:00:06]} {[%emt 00:00:02]} Rf8 {[%clk
00:00:12]} {[%emt 00:00:01]} 31. h4 {[%clk 00:00:06]} {[%emt 00:00:01]} Qg4
{[%clk 00:00:12]} {[%emt 00:00:02]} 32. Rc6 {[%clk 00:00:07]} {[%emt 00:00:02]}
Qe4+ {[%clk 00:00:12]} 33. Kg1 {[%clk 00:00:08]} {[%emt 00:00:02]} Qb1+ {[%clk
00:00:12]} {[%emt 00:00:02]} 34. Qc1 {[%clk 00:00:08]} {[%emt 00:00:02]} Qxc1+
{[%clk 00:00:06]} {[%emt 00:00:09]} 35. Rxc1 {[%clk 00:00:08]} {[%emt
00:00:01]} Ra8 {[%clk 00:00:06]} 36. Rc7 {[%clk 00:00:09]} {[%emt 00:00:03]}
Kg7 {[%clk 00:00:04]} {[%emt 00:00:04]} 37. Kg2 {[%clk 00:00:09]} {[%emt
00:00:02]} h5 {[%emt 00:00:03]} 38. Kf3 {[%clk 00:00:08]} {[%emt 00:00:01]} Kf6
{[%clk 00:00:05]} 39. Kf4 {[%clk 00:00:08]} {[%emt 00:00:02]} a5 {[%clk
00:00:05]} {[%emt 00:00:03]} 40. Rb7 {[%clk 00:00:08]} {[%emt 00:00:02]} axb4
{[%clk 00:00:06]} {[%emt 00:00:01]} 41. axb4 {[%clk 00:00:09]} Ra2 {[%clk
00:00:07]} 42. Kf3 {[%clk 00:00:09]} e5 {[%clk 00:00:08]} {[%emt 00:00:02]} 43.
dxe5+ {[%clk 00:00:09]} {[%emt 00:00:02]} Kxe5 {[%clk 00:00:09]} 44. Rxb5
{[%clk 00:00:09]} {[%emt 00:00:02]} f6 {[%clk 00:00:08]} {[%emt 00:00:03]} 45.
Rb8 {[%clk 00:00:09]} {[%emt 00:00:02]} g5 {[%clk 00:00:08]} 46. hxg5 {[%clk
00:00:08]} {[%emt 00:00:03]} fxg5 {[%clk 00:00:10]} 47. Rh8 {[%clk 00:00:07]}
{[%emt 00:00:02]} Rb2 {[%emt 00:00:08]} 48. Rxh5 {[%clk 00:00:07]} Kf5 {[%clk
00:00:07]} 49. Rh6 {[%clk 00:00:04]} {[%emt 00:00:06]} g4+ {[%clk 00:00:07]}
{[%emt 00:00:02]} 50. Kg2 {[%clk 00:00:05]} {[%emt 00:00:01]} Rxb4 {[%clk
00:00:08]} 51. Rh8 {[%clk 00:00:05]} d4 {[%clk 00:00:06]} {[%emt 00:00:04]} 52.
Rf8+ {[%clk 00:00:05]} {[%emt 00:00:02]} Ke5 {[%clk 00:00:04]} {[%emt
00:00:04]} 53. Rf4 {[%clk 00:00:05]} {[%emt 00:00:02]} Rc4 {[%clk 00:00:03]}
{[%emt 00:00:04]} 54. Rxg4 {[%clk 00:00:05]} {[%emt 00:00:02]} Rc2 {[%clk
00:00:03]} {[%emt 00:00:02]} 55. Rxd4 {[%clk 00:00:05]} {[%emt 00:00:01]} Kf5
{[%clk 00:00:04]} 56. Rf4+ {[%clk 00:00:06]} {[%emt 00:00:02]} Kg5 {[%clk
00:00:05]} 57. g4 {[%clk 00:00:07]} {[%emt 00:00:02]} Rc7 {[%clk 00:00:06]}
{[%emt 00:00:02]} 58. Kg3 {[%clk 00:00:07]} {[%emt 00:00:01]} Rc1 {[%clk
00:00:07]} 59. Rf5+ {[%clk 00:00:08]} {[%emt 00:00:02]} Kg6 {[%clk 00:00:08]}
60. Kf4 {[%clk 00:00:09]} {[%emt 00:00:02]} Rc4+ {[%clk 00:00:09]} 61. e4
{[%clk 00:00:10]} Rc2 {[%clk 00:00:11]} 62. f3 {[%clk 00:00:11]} Rc6 {[%clk
00:00:12]} 63. Rg5+ {[%clk 00:00:11]} {[%emt 00:00:01]} Kf6 {[%clk 00:00:13]}
64. e5+ Kf7 65. Kf5 {[%clk 00:00:12]} {[%emt 00:00:03]} Rh6 {[%clk 00:00:15]}
{[%emt 00:00:02]} 66. f4 {[%clk 00:00:12]} {[%emt 00:00:01]} Ra6 {[%clk
00:00:15]} {[%emt 00:00:01]} 67. Rh5 {[%clk 00:00:13]} Kg8 {[%clk 00:00:16]}
{[%emt 00:00:02]} 68. Rh1 {[%clk 00:00:12]} {[%emt 00:00:03]} Kf7 {[%clk
00:00:16]} {[%emt 00:00:02]} 69. Rb1 {[%clk 00:00:13]} Ra7 {[%clk 00:00:18]} 70.
Rb6 {[%clk 00:00:14]} {[%emt 00:00:02]} Kg7 {[%clk 00:00:18]} 71. g5 {[%clk
00:00:15]} Rf7+ {[%clk 00:00:19]} {[%emt 00:00:03]} 72. Rf6 {[%clk 00:00:15]}
{[%emt 00:00:01]} Re7 {[%clk 00:00:21]} 73. e6 {[%clk 00:00:15]} {[%emt
00:00:03]} Re8 {[%clk 00:00:22]} {[%emt 00:00:01]} 74. Rf7+ {[%clk 00:00:16]}
Kg8 {[%clk 00:00:23]} 75. Kf6 {[%clk 00:00:16]} {[%emt 00:00:02]} Ra8 {[%clk
00:00:24]} 76. Rd7 {[%clk 00:00:16]} {[%emt 00:00:03]} Rf8+ {[%clk 00:00:25]}
77. Ke5 {[%clk 00:00:16]} {[%emt 00:00:02]} Ra8 {[%clk 00:00:26]} 78. f5 {[%clk
00:00:16]} {[%emt 00:00:03]} Kf8 {[%clk 00:00:27]} {[%emt 00:00:01]} 79. f6
{[%clk 00:00:16]} {[%emt 00:00:02]} Ra5+ {[%clk 00:00:28]} 80. Kf4 {[%clk
00:00:17]} {[%emt 00:00:01]} Rb5 {[%clk 00:00:21]} {[%emt 00:00:09]} 81. Rd8#
{[%clk 00:00:17]} {[%emt 00:00:01]} 1-0

[Event "Blixt-SM 2021"]
[Site "Elite Hotel Marina Plaza, Kungstorget 6, Helsingborg, Sweden"]
[Date "2021.11.14"]
[Round "6.2"]
[White "Frisk, Ellinor"]
[Black "Smith, Axel"]
[Result "0-1"]
[TimeControl "3 minutes + 2 seconds per move."]
[WhiteTitle "WIM"]
[BlackTitle "GM"]
[WhiteFideId "1708481"]
[BlackFideId "1707930"]
[WhiteElo "2142"]
[BlackElo "2473"]

1. Nf3 {[%clk 00:03:02]} c5 {[%clk 00:03:04]} 2. c4 {[%clk 00:02:58]} {[%emt
00:00:06]} Nc6 {[%clk 00:03:06]} 3. d4 {[%clk 00:02:57]} {[%emt 00:00:03]} cxd4
{[%clk 00:03:07]} {[%emt 00:00:01]} 4. Nxd4 {[%clk 00:02:59]} g6 {[%clk
00:03:08]} 5. g3 {[%clk 00:02:52]} {[%emt 00:00:09]} Bg7 {[%clk 00:03:10]} 6.
Nc2 {[%clk 00:02:54]} d6 {[%clk 00:03:11]} 7. Bg2 {[%clk 00:02:55]} Be6 {[%clk
00:03:13]} 8. Nba3 {[%clk 00:02:42]} {[%emt 00:00:16]} Qd7 {[%clk 00:03:09]}
{[%emt 00:00:06]} 9. O-O {[%clk 00:02:42]} {[%emt 00:00:02]} Bh3 {[%clk
00:03:07]} {[%emt 00:00:04]} 10. Ne3 {[%clk 00:02:25]} {[%emt 00:00:19]} h5
{[%clk 00:02:55]} {[%emt 00:00:14]} 11. Bxh3 {[%clk 00:02:03]} {[%emt
00:00:24]} Qxh3 {[%clk 00:02:56]} 12. Qd5 {[%clk 00:02:00]} {[%emt 00:00:05]}
h4 {[%clk 00:02:41]} {[%emt 00:00:17]} 13. Qg2 {[%clk 00:02:01]} {[%emt
00:00:02]} Qxg2+ {[%clk 00:02:34]} {[%emt 00:00:09]} 14. Kxg2 {[%clk 00:02:00]}
{[%emt 00:00:03]} h3+ {[%clk 00:02:33]} {[%emt 00:00:03]} 15. Kg1 {[%clk
00:02:00]} {[%emt 00:00:01]} Nd4 {[%clk 00:02:31]} {[%emt 00:00:04]} 16. Re1
{[%clk 00:01:56]} {[%emt 00:00:06]} Nf6 {[%clk 00:02:30]} {[%emt 00:00:03]} 17.
Rb1 {[%clk 00:01:46]} {[%emt 00:00:12]} O-O {[%clk 00:02:23]} {[%emt 00:00:09]}
18. Bd2 {[%clk 00:01:48]} Ne4 {[%clk 00:02:20]} {[%emt 00:00:05]} 19. Rbd1
{[%clk 00:01:21]} {[%emt 00:00:29]} Rfc8 {[%clk 00:02:12]} {[%emt 00:00:10]} 20.
b3 {[%clk 00:01:17]} {[%emt 00:00:06]} Nc6 {[%clk 00:02:00]} {[%emt 00:00:14]}
21. Nac2 {[%clk 00:01:11]} {[%emt 00:00:09]} Nxd2 {[%clk 00:01:59]} {[%emt
00:00:02]} 22. Rxd2 {[%clk 00:01:11]} {[%emt 00:00:02]} Bc3 {[%clk 00:02:01]}
23. Red1 {[%clk 00:01:10]} {[%emt 00:00:03]} Bxd2 {[%clk 00:02:02]} {[%emt
00:00:01]} 24. Rxd2 {[%clk 00:01:11]} Kg7 {[%clk 00:01:50]} {[%emt 00:00:14]}
25. Nd5 {[%clk 00:01:08]} {[%emt 00:00:05]} g5 {[%clk 00:01:40]} {[%emt
00:00:12]} 26. f3 {[%clk 00:01:06]} {[%emt 00:00:04]} e6 {[%clk 00:01:34]}
{[%emt 00:00:08]} 27. Nc3 {[%clk 00:00:55]} {[%emt 00:00:13]} Ne5 {[%clk
00:01:26]} {[%emt 00:00:10]} 28. Rxd6 {[%clk 00:00:43]} {[%emt 00:00:14]} Rd8
{[%clk 00:01:27]} {[%emt 00:00:01]} 29. Ne4 {[%clk 00:00:42]} {[%emt 00:00:03]}
Rxd6 {[%clk 00:01:19]} {[%emt 00:00:10]} 30. Nxd6 {[%emt 00:00:02]} b6 {[%clk
00:01:20]} 31. Kf2 {[%clk 00:00:21]} {[%emt 00:00:23]} f5 {[%clk 00:01:12]}
{[%emt 00:00:10]} 32. f4 {[%clk 00:00:19]} {[%emt 00:00:04]} Ng4+ {[%clk
00:01:11]} {[%emt 00:00:03]} 33. Kg1 {[%clk 00:00:09]} {[%emt 00:00:12]} Rd8
{[%clk 00:01:08]} {[%emt 00:00:06]} 0-1

[Event "Blixt-SM 2021"]
[Site "Elite Hotel Marina Plaza, Kungstorget 6, Helsingborg, Sweden"]
[Date "2021.11.14"]
[Round "7.9"]
[White "Khalat, Havras"]
[Black "Mauritsson, Sebastian"]
[Result "1-0"]
[TimeControl "3 minutes + 2 seconds per move."]
[BlackTitle "FM"]
[WhiteFideId "1725017"]
[BlackFideId "1707892"]
[WhiteElo "1793"]
[BlackElo "2390"]

1. d4 {[%clk 00:03:02]} {[%emt 00:00:01]} d5 {[%clk 00:03:04]} 2. Nf3 {[%clk
00:03:03]} Nf6 {[%clk 00:03:04]} {[%emt 00:00:01]} 3. e3 {[%clk 00:03:04]} c6
{[%clk 00:03:02]} {[%emt 00:00:06]} 4. c4 {[%clk 00:03:05]} Bg4 {[%clk
00:03:00]} {[%emt 00:00:03]} 5. cxd5 {[%clk 00:03:05]} {[%emt 00:00:02]} Bxf3
{[%clk 00:02:51]} {[%emt 00:00:11]} 6. Qxf3 {[%clk 00:03:04]} {[%emt 00:00:03]}
cxd5 {[%clk 00:02:52]} {[%emt 00:00:01]} 7. Bd3 {[%clk 00:03:01]} {[%emt
00:00:05]} Nc6 {[%clk 00:02:52]} {[%emt 00:00:02]} 8. O-O {[%clk 00:03:00]}
{[%emt 00:00:04]} e6 {[%clk 00:02:49]} {[%emt 00:00:05]} 9. Nc3 {[%clk
00:03:00]} {[%emt 00:00:02]} Bd6 {[%clk 00:02:48]} {[%emt 00:00:03]} 10. a3
{[%clk 00:02:59]} {[%emt 00:00:03]} O-O {[%clk 00:02:48]} {[%emt 00:00:02]} 11.
b4 {[%clk 00:02:50]} {[%emt 00:00:11]} Rc8 {[%clk 00:02:45]} {[%emt 00:00:05]}
12. Bb2 {[%clk 00:02:50]} {[%emt 00:00:02]} Bb8 {[%clk 00:02:40]} {[%emt
00:00:06]} 13. Rac1 {[%clk 00:02:43]} {[%emt 00:00:09]} Qd6 {[%clk 00:02:33]}
{[%emt 00:00:09]} 14. g3 {[%clk 00:02:41]} {[%emt 00:00:04]} g6 {[%clk
00:02:28]} {[%emt 00:00:07]} 15. Qxf6 {[%clk 00:02:37]} {[%emt 00:00:05]} Ne7
{[%clk 00:02:23]} {[%emt 00:00:08]} 16. Nb5 {[%clk 00:02:31]} {[%emt 00:00:08]}
Qd7 {[%clk 00:02:17]} {[%emt 00:00:08]} 17. Rxc8 {[%clk 00:02:27]} {[%emt
00:00:06]} Nxc8 {[%clk 00:02:14]} {[%emt 00:00:06]} 18. Rc1 {[%clk 00:02:22]}
{[%emt 00:00:06]} a6 {[%clk 00:02:15]} {[%emt 00:00:02]} 19. Nc3 {[%clk
00:02:21]} {[%emt 00:00:03]} Nd6 {[%clk 00:02:16]} 20. Ne2 {[%clk 00:02:12]}
{[%emt 00:00:11]} Nf5 {[%clk 00:02:14]} {[%emt 00:00:04]} 21. Bxf5 {[%clk
00:02:10]} {[%emt 00:00:04]} gxf5 {[%clk 00:02:13]} {[%emt 00:00:02]} 22. Nf4
{[%clk 00:02:09]} {[%emt 00:00:03]} Bxf4 {[%clk 00:02:03]} {[%emt 00:00:13]} 23.
gxf4 {[%clk 00:02:07]} {[%emt 00:00:04]} Rc8 {[%clk 00:02:04]} {[%emt
00:00:02]} 24. Rf1 {[%clk 00:01:40]} {[%emt 00:00:29]} Rc2 {[%clk 00:02:02]}
{[%emt 00:00:04]} 25. Ba1 {[%clk 00:01:41]} {[%emt 00:00:01]} Qb5 {[%clk
00:01:54]} {[%emt 00:00:10]} 26. Qg5+ {[%clk 00:01:38]} {[%emt 00:00:05]} Kh8
{[%clk 00:01:55]} {[%emt 00:00:01]} 27. Qf6+ {[%clk 00:01:37]} {[%emt
00:00:03]} Kg8 {[%clk 00:01:56]} 28. Kg2 {[%clk 00:01:34]} {[%emt 00:00:04]}
Qe2 {[%clk 00:01:54]} {[%emt 00:00:04]} 29. Qd8+ {[%clk 00:01:25]} {[%emt
00:00:12]} Kg7 {[%clk 00:01:55]} {[%emt 00:00:01]} 30. Qg5+ {[%clk 00:01:25]}
{[%emt 00:00:02]} Kh8 {[%clk 00:01:56]} {[%emt 00:00:01]} 31. Qf6+ {[%clk
00:01:14]} {[%emt 00:00:12]} Kg8 {[%clk 00:01:57]} 32. Qg5+ {[%clk 00:01:15]}
{[%emt 00:00:01]} Kh8 {[%clk 00:01:59]} 33. Qh4 {[%clk 00:01:04]} {[%emt
00:00:09]} Qxe3 {[%clk 00:01:57]} {[%emt 00:00:07]} 34. Qg3 {[%clk 00:00:50]}
{[%emt 00:00:15]} Qxg3+ {[%clk 00:01:58]} {[%emt 00:00:03]} 35. hxg3 {[%clk
00:00:50]} {[%emt 00:00:02]} Ra2 {[%clk 00:01:58]} {[%emt 00:00:02]} 36. Rc1
{[%clk 00:00:43]} {[%emt 00:00:08]} Rxa3 {[%clk 00:01:59]} {[%emt 00:00:02]} 37.
Bb2 {[%clk 00:00:38]} {[%emt 00:00:06]} Rb3 {[%clk 00:02:00]} {[%emt 00:00:01]}
38. Rc8+ {[%clk 00:00:36]} {[%emt 00:00:04]} Kg7 {[%clk 00:02:01]} 39. Bc1
{[%clk 00:00:35]} {[%emt 00:00:04]} Rxb4 {[%clk 00:02:01]} {[%emt 00:00:02]} 40.
Ba3 {[%clk 00:00:31]} {[%emt 00:00:05]} Rb3 {[%clk 00:02:00]} {[%emt 00:00:03]}
41. Bf8+ {[%clk 00:00:30]} {[%emt 00:00:03]} Kg6 {[%clk 00:02:01]} {[%emt
00:00:02]} 42. Bd6 {[%clk 00:00:27]} {[%emt 00:00:04]} a5 {[%clk 00:01:58]}
{[%emt 00:00:06]} 43. Be5 {[%clk 00:00:28]} {[%emt 00:00:02]} a4 {[%clk
00:01:56]} {[%emt 00:00:04]} 44. Rg8+ {[%clk 00:00:28]} {[%emt 00:00:01]} Kh6
{[%clk 00:01:55]} {[%emt 00:00:02]} 45. Bg7+ {[%clk 00:00:23]} {[%emt
00:00:07]} Kh5 {[%clk 00:01:54]} {[%emt 00:00:04]} 46. Bf6 {[%clk 00:00:21]}
{[%emt 00:00:04]} h6 {[%clk 00:01:55]} 47. f3 {[%clk 00:00:13]} {[%emt
00:00:09]} a3 {[%clk 00:01:05]} {[%emt 00:00:53]} 48. g4+ {[%clk 00:00:13]}
{[%emt 00:00:01]} fxg4 {[%clk 00:01:05]} {[%emt 00:00:02]} 49. fxg4# {[%emt
00:00:01]} 1-0

[Event "Blixt-SM 2021"]
[Site "Elite Hotel Marina Plaza, Kungstorget 6, Helsingborg, Sweden"]
[Date "2021.11.14"]
[Round "9.7"]
[White "Tornberg, Carlos"]
[Black "Troedsson, Anton"]
[Result "1-0"]
[TimeControl "3 minutes + 2 seconds per move."]
[WhiteFideId "1733478"]
[BlackFideId "1746006"]
[WhiteElo "2053"]
[BlackElo "2104"]

1. e4 {[%clk 00:03:03]} {[%emt 00:12:37]} c6 {[%clk 00:03:04]} {[%emt
00:00:02]} 2. d4 {[%clk 00:03:05]} d5 {[%clk 00:03:05]} 3. Nd2 {[%clk
00:03:06]} dxe4 {[%clk 00:03:05]} {[%emt 00:00:01]} 4. Nxe4 {[%clk 00:03:07]}
Nf6 {[%clk 00:03:07]} 5. Nxf6+ {[%clk 00:03:08]} {[%emt 00:00:01]} exf6 {[%clk
00:03:08]} 6. g3 {[%clk 00:03:09]} {[%emt 00:00:01]} Bd6 {[%clk 00:03:08]}
{[%emt 00:00:02]} 7. Bg2 {[%clk 00:03:10]} O-O {[%clk 00:03:08]} {[%emt
00:00:01]} 8. Ne2 {[%clk 00:03:11]} {[%emt 00:00:01]} Re8 {[%clk 00:03:04]}
{[%emt 00:00:06]} 9. O-O {[%clk 00:03:12]} {[%emt 00:00:02]} Bg4 {[%clk
00:03:03]} {[%emt 00:00:03]} 10. Be3 {[%clk 00:03:12]} {[%emt 00:00:01]} Nd7
{[%clk 00:03:00]} {[%emt 00:00:04]} 11. Qd3 {[%clk 00:03:12]} {[%emt 00:00:02]}
Qa5 {[%clk 00:02:53]} {[%emt 00:00:09]} 12. c3 {[%clk 00:02:38]} {[%emt
00:00:37]} Bf5 {[%clk 00:02:50]} {[%emt 00:00:06]} 13. Qd2 {[%clk 00:02:38]}
{[%emt 00:00:01]} Rad8 {[%clk 00:02:47]} {[%emt 00:00:05]} 14. Nf4 {[%clk
00:02:23]} {[%emt 00:00:17]} Nb6 {[%clk 00:02:36]} {[%emt 00:00:14]} 15. b4
{[%clk 00:02:04]} {[%emt 00:00:21]} Qa6 {[%clk 00:02:33]} {[%emt 00:00:04]} 16.
Rfe1 {[%clk 00:01:48]} {[%emt 00:00:18]} Nc4 {[%clk 00:02:04]} {[%emt
00:00:31]} 17. Qc1 {[%clk 00:01:29]} {[%emt 00:00:21]} Qb6 {[%clk 00:01:52]}
{[%emt 00:00:15]} 18. Bd2 {[%clk 00:01:02]} {[%emt 00:00:28]} Qc7 {[%clk
00:01:48]} {[%emt 00:00:05]} 19. Ne2 {[%clk 00:00:44]} {[%emt 00:00:20]} Bg4
{[%clk 00:01:40]} {[%emt 00:00:09]} 20. Bf1 {[%clk 00:00:39]} {[%emt 00:00:09]}
h6 {[%clk 00:01:18]} {[%emt 00:00:24]} 21. Bf4 {[%clk 00:00:31]} {[%emt
00:00:09]} g5 {[%clk 00:01:19]} {[%emt 00:00:01]} 22. Bxd6 {[%clk 00:00:29]}
{[%emt 00:00:04]} Qxd6 {[%clk 00:01:19]} {[%emt 00:00:01]} 23. Nf4 {[%clk
00:00:23]} {[%emt 00:00:08]} Nb6 {[%clk 00:01:05]} {[%emt 00:00:15]} 24. Ng2
{[%clk 00:00:24]} {[%emt 00:00:02]} Bf5 {[%clk 00:00:56]} {[%emt 00:00:12]} 25.
Ne3 {[%clk 00:00:24]} {[%emt 00:00:02]} Be4 {[%clk 00:00:56]} {[%emt 00:00:02]}
26. Bg2 {[%clk 00:00:15]} {[%emt 00:00:11]} f5 {[%clk 00:00:56]} {[%emt
00:00:02]} 27. a4 {[%clk 00:00:12]} {[%emt 00:00:05]} Qf6 {[%clk 00:00:42]}
{[%emt 00:00:15]} 28. a5 {[%clk 00:00:11]} {[%emt 00:00:04]} Nc8 {[%clk
00:00:40]} {[%emt 00:00:04]} 29. Nc4 {[%clk 00:00:12]} {[%emt 00:00:02]} Bxg2
{[%clk 00:00:34]} {[%emt 00:00:07]} 30. Kxg2 {[%clk 00:00:12]} {[%emt
00:00:02]} Nd6 {[%clk 00:00:27]} {[%emt 00:00:09]} 31. Ne5 {[%clk 00:00:13]}
{[%emt 00:00:01]} Ne4 {[%clk 00:00:23]} {[%emt 00:00:06]} 32. a6 {[%clk
00:00:14]} b5 {[%clk 00:00:23]} {[%emt 00:00:02]} 33. Qc2 {[%clk 00:00:11]}
{[%emt 00:00:05]} g4 {[%clk 00:00:23]} {[%emt 00:00:02]} 34. Rad1 {[%clk
00:00:09]} {[%emt 00:00:04]} Kg7 {[%clk 00:00:24]} {[%emt 00:00:02]} 35. Nd3
{[%clk 00:00:09]} {[%emt 00:00:02]} Ng5 {[%clk 00:00:13]} {[%emt 00:00:12]} 36.
Nf4 {[%clk 00:00:09]} {[%emt 00:00:02]} Nf3 {[%clk 00:00:13]} {[%emt 00:00:02]}
37. Nh5+ {[%clk 00:00:10]} {[%emt 00:00:02]} Kg6 {[%clk 00:00:12]} {[%emt
00:00:03]} 38. Nxf6 {[%clk 00:00:10]} {[%emt 00:00:01]} Rxe1 {[%clk 00:00:11]}
{[%emt 00:00:04]} 39. Nxg4 {[%clk 00:00:06]} {[%emt 00:00:05]} 1-0

[Event "Blixt-SM 2021"]
[Site "Elite Hotel Marina Plaza, Kungstorget 6, Helsingborg, Sweden"]
[Date "2021.11.14"]
[Round "11.6"]
[White "Rajcevski, Dejan"]
[Black "Abedinov, Adnan"]
[Result "1-0"]
[TimeControl "3 minutes + 2 seconds per move."]
[WhiteFideId "1759027"]
[BlackFideId "1703544"]
[WhiteElo "1977"]
[BlackElo "2170"]

1. d4 g6 2. Nf3 {[%clk 00:03:04]} Bg7 {[%emt 00:19:46]} 3. Bf4 {[%clk
00:03:02]} f5 {[%clk 00:03:02]} {[%emt 00:00:02]} 4. e3 {[%clk 00:03:02]} Nh6
{[%clk 00:03:02]} {[%emt 00:00:03]} 5. h3 {[%clk 00:03:02]} {[%emt 00:00:02]}
Nf7 {[%clk 00:03:02]} {[%emt 00:00:01]} 6. Bc4 {[%clk 00:03:02]} {[%emt
00:00:07]} e6 {[%clk 00:03:02]} {[%emt 00:00:03]} 7. c3 {[%clk 00:03:02]}
{[%emt 00:00:04]} O-O {[%clk 00:02:56]} {[%emt 00:00:17]} 8. Nbd2 {[%clk
00:03:01]} {[%emt 00:00:04]} d6 {[%clk 00:02:56]} {[%emt 00:00:02]} 9. a4
{[%clk 00:02:56]} {[%emt 00:00:08]} Kh8 {[%clk 00:02:50]} {[%emt 00:00:07]} 10.
Bg3 {[%clk 00:02:48]} {[%emt 00:00:10]} Qe7 {[%clk 00:02:48]} {[%emt 00:00:05]}
11. O-O {[%clk 00:02:40]} {[%emt 00:00:10]} e5 {[%clk 00:02:42]} {[%emt
00:00:08]} 12. dxe5 {[%clk 00:02:40]} {[%emt 00:00:03]} dxe5 {[%clk 00:02:35]}
{[%emt 00:00:09]} 13. Qb3 {[%clk 00:02:34]} {[%emt 00:00:07]} Nd6 {[%clk
00:02:30]} {[%emt 00:00:07]} 14. Be2 {[%clk 00:02:26]} {[%emt 00:00:11]} g5
{[%clk 00:02:17]} {[%emt 00:00:15]} 15. Rfe1 {[%clk 00:02:18]} {[%emt
00:00:10]} e4 {[%clk 00:01:50]} {[%emt 00:00:29]} 16. Nd4 {[%clk 00:02:10]}
{[%emt 00:00:10]} f4 {[%clk 00:01:46]} {[%emt 00:00:06]} 17. Bh2 {[%clk
00:01:45]} {[%emt 00:00:27]} a6 {[%clk 00:01:46]} {[%emt 00:00:02]} 18. Bg4
{[%clk 00:01:37]} {[%emt 00:00:10]} c5 {[%clk 00:01:25]} {[%emt 00:00:22]} 19.
Ne2 {[%clk 00:01:21]} {[%emt 00:00:19]} Bxg4 {[%clk 00:00:50]} {[%emt
00:00:38]} 20. hxg4 {[%clk 00:01:21]} fxe3 {[%clk 00:00:46]} {[%emt 00:00:05]}
21. fxe3 {[%clk 00:01:17]} {[%emt 00:00:06]} Nc6 {[%clk 00:00:47]} {[%emt
00:00:02]} 22. Bxd6 {[%clk 00:01:11]} {[%emt 00:00:08]} Qxd6 {[%clk 00:00:48]}
{[%emt 00:00:02]} 23. Nxe4 {[%clk 00:01:10]} {[%emt 00:00:03]} Qe7 {[%clk
00:00:39]} {[%emt 00:00:12]} 24. N2g3 {[%clk 00:01:01]} {[%emt 00:00:11]} Ne5
{[%clk 00:00:37]} {[%emt 00:00:04]} 25. Nf5 {[%clk 00:00:54]} {[%emt 00:00:09]}
Nxg4 {[%clk 00:00:27]} {[%emt 00:00:11]} 26. Nxe7 {[%clk 00:00:51]} {[%emt
00:00:05]} 1-0